[Event "*** Titled Tuesday Blitz"]
[Site "Chess.com"]
[Date "2021.03.02"]
[Round "9"]
[White "Walter_White_Poland"]
[Black "dodorox"]
[Result "1-0"]
[WhiteElo "2284"]
[BlackElo "2148"]
[TimeControl "180+1"]
[EndTime "11:47:15 PST"]
[Termination "Walter_White_Poland won on time"]

1. e4 {[%clk 0:03:00.9]} 1... e6 {[%clk 0:02:59.5]} 2. d4 {[%clk 0:03:00.4]}
2... d5 {[%clk 0:02:59.3]} 3. Nc3 {[%clk 0:03:00.4]} 3... Nf6 {[%clk 0:02:58.9]}
4. Bg5 {[%clk 0:02:59.6]} 4... dxe4 {[%clk 0:02:58.6]} 5. Nxe4 {[%clk
0:02:59.2]} 5... Be7 {[%clk 0:02:58.7]} 6. Bxf6 {[%clk 0:02:59.1]} 6... gxf6
{[%clk 0:02:59]} 7. Nf3 {[%clk 0:02:58.8]} 7... f5 {[%clk 0:02:59.6]} 8. Nc5
{[%clk 0:02:58.2]} 8... Bxc5 {[%clk 0:02:42.5]} 9. dxc5 {[%clk 0:02:57.9]} 9...
Qxd1+ {[%clk 0:02:34.5]} 10. Rxd1 {[%clk 0:02:57.1]} 10... Nd7 {[%clk
0:02:24.7]} 11. c6 {[%clk 0:02:54.2]} 11... bxc6 {[%clk 0:02:22.6]} 12. Bc4
{[%clk 0:02:53.8]} 12... c5 {[%clk 0:02:16.1]} 13. Ke2 {[%clk 0:02:11.1]} 13...
Bb7 {[%clk 0:02:07.8]} 14. Bb5 {[%clk 0:02:08]} 14... O-O-O {[%clk 0:01:57.9]}
15. Bxd7+ {[%clk 0:01:55.9]} 15... Rxd7 {[%clk 0:01:57.3]} 16. Ne5 {[%clk
0:01:18.8]} 16... Rxd1 {[%clk 0:01:46.2]} 17. Rxd1 {[%clk 0:01:18]} 17... f6
{[%clk 0:01:22.9]} 18. Nd7 {[%clk 0:01:07.1]} 18... Rd8 {[%clk 0:00:44.4]} 19.
Nxc5 {[%clk 0:00:43.3]} 19... Rxd1 {[%clk 0:00:39.2]} 20. Kxd1 {[%clk
0:00:43.4]} 20... Bxg2 {[%clk 0:00:28.2]} 21. Nxe6 {[%clk 0:00:40.8]} 21... h6
{[%clk 0:00:19.3]} 22. Nf4 {[%clk 0:00:31.5]} 22... Bf3+ {[%clk 0:00:18.1]} 23.
Kd2 {[%clk 0:00:31.2]} 23... Kd7 {[%clk 0:00:17.1]} 24. Ke3 {[%clk 0:00:27.7]}
24... Bb7 {[%clk 0:00:17.3]} 25. Kd4 {[%clk 0:00:24.3]} 25... Kd6 {[%clk
0:00:16.4]} 26. b4 {[%clk 0:00:23.8]} 26... Bf3 {[%clk 0:00:14]} 27. c4 {[%clk
0:00:21.2]} 27... h5 {[%clk 0:00:12.7]} 28. c5+ {[%clk 0:00:21]} 28... Kc6
{[%clk 0:00:11]} 29. h4 {[%clk 0:00:20]} 29... Bg4 {[%clk 0:00:07.2]} 30. Nd5
{[%clk 0:00:15.4]} 30... a5 {[%clk 0:00:05.5]} 31. bxa5 {[%clk 0:00:13.4]} 31...
Kb5 {[%clk 0:00:05.3]} 32. Nxc7+ {[%clk 0:00:12.9]} 32... Kxa5 {[%clk
0:00:05.6]} 33. Ne8 {[%clk 0:00:12.7]} 1-0

[Event "*** Titled Tuesday Blitz"]
[Site "Chess.com"]
[Date "2021.03.02"]
[Round "9"]
[White "onetowin"]
[Black "Klavdia_Nik"]
[Result "1-0"]
[WhiteElo "2135"]
[BlackElo "2056"]
[TimeControl "180+1"]
[EndTime "11:47:15 PST"]
[Termination "onetowin won on time"]

1. d4 {[%clk 0:03:00.9]} 1... Nf6 {[%clk 0:02:52.7]} 2. Nf3 {[%clk 0:02:54.1]}
2... c5 {[%clk 0:02:52.2]} 3. d5 {[%clk 0:02:46.2]} 3... d6 {[%clk 0:02:50.7]}
4. Nc3 {[%clk 0:02:41.2]} 4... g6 {[%clk 0:02:47.9]} 5. e4 {[%clk 0:02:39.1]}
5... Bg7 {[%clk 0:02:47.1]} 6. a4 {[%clk 0:02:39.1]} 6... Na6 {[%clk 0:02:33.3]}
7. Be2 {[%clk 0:02:38.5]} 7... O-O {[%clk 0:02:27.7]} 8. Nd2 {[%clk 0:02:37.3]}
8... Rb8 {[%clk 0:02:22.3]} 9. O-O {[%clk 0:02:25.7]} 9... Nb4 {[%clk
0:02:20.7]} 10. Nc4 {[%clk 0:02:21.3]} 10... b6 {[%clk 0:02:18.2]} 11. f4 {[%clk
0:02:04.3]} 11... Ne8 {[%clk 0:02:05.2]} 12. e5 {[%clk 0:01:52.8]} 12... a6
{[%clk 0:01:50.6]} 13. Kh1 {[%clk 0:01:33.4]} 13... Bf5 {[%clk 0:01:49.8]} 14.
Ne3 {[%clk 0:01:19.1]} 14... Bd7 {[%clk 0:01:43.8]} 15. Bg4 {[%clk 0:01:00.2]}
15... Bxg4 {[%clk 0:01:28.3]} 16. Nxg4 {[%clk 0:00:59.9]} 16... h5 {[%clk
0:01:23.5]} 17. Ne3 {[%clk 0:00:36.1]} 17... dxe5 {[%clk 0:01:21.3]} 18. fxe5
{[%clk 0:00:35.2]} 18... Bxe5 {[%clk 0:01:21.6]} 19. Ne4 {[%clk 0:00:34.1]}
19... Nc7 {[%clk 0:00:58.9]} 20. d6 {[%clk 0:00:24.7]} 20... exd6 {[%clk
0:00:43.6]} 21. c3 {[%clk 0:00:24.7]} 21... Nc6 {[%clk 0:00:42.1]} 22. Qf3
{[%clk 0:00:24.8]} 22... Ne7 {[%clk 0:00:26]} 23. Nc4 {[%clk 0:00:24.1]} 23...
Nf5 {[%clk 0:00:20.4]} 24. Rd1 {[%clk 0:00:21.3]} 24... Qe7 {[%clk 0:00:15]} 25.
Bg5 {[%clk 0:00:17.8]} 25... f6 {[%clk 0:00:13.7]} 26. Bh6 {[%clk 0:00:17.4]}
26... Rfd8 {[%clk 0:00:12.6]} 27. g4 {[%clk 0:00:15.6]} 27... Nxh6 {[%clk
0:00:05.4]} 28. gxh5 {[%clk 0:00:13]} 28... g5 {[%clk 0:00:05.6]} 29. Ng3 {[%clk
0:00:11.3]} 29... Ne6 {[%clk 0:00:04.4]} 30. Nf5 {[%clk 0:00:11.3]} 30... Nxf5
{[%clk 0:00:03.7]} 31. Qxf5 {[%clk 0:00:12.2]} 31... Qf7 {[%clk 0:00:01.6]} 32.
h6 {[%clk 0:00:11.5]} 1-0

[Event "*** Titled Tuesday Blitz"]
[Site "Chess.com"]
[Date "2021.03.02"]
[Round "9"]
[White "zim0ne"]
[Black "miredenizdogan"]
[Result "1-0"]
[WhiteElo "2500"]
[BlackElo "2282"]
[TimeControl "180+1"]
[EndTime "11:47:17 PST"]
[Termination "zim0ne won by resignation"]

1. Nf3 {[%clk 0:02:58.7]} 1... d5 {[%clk 0:02:57]} 2. c4 {[%clk 0:02:59.6]} 2...
c6 {[%clk 0:02:54.7]} 3. g3 {[%clk 0:02:59.3]} 3... Nf6 {[%clk 0:02:55.1]} 4.
Bg2 {[%clk 0:02:59.8]} 4... dxc4 {[%clk 0:02:55]} 5. a4 {[%clk 0:02:59.7]} 5...
g6 {[%clk 0:02:46.7]} 6. Na3 {[%clk 0:02:59]} 6... Bg7 {[%clk 0:02:46.1]} 7.
Nxc4 {[%clk 0:02:59.3]} 7... O-O {[%clk 0:02:46.6]} 8. O-O {[%clk 0:02:59.9]}
8... Be6 {[%clk 0:02:46.2]} 9. d3 {[%clk 0:02:52.7]} 9... Nbd7 {[%clk
0:02:37.1]} 10. Qc2 {[%clk 0:02:51]} 10... Nb6 {[%clk 0:02:35.7]} 11. Na5 {[%clk
0:02:49.5]} 11... Qc8 {[%clk 0:02:29.9]} 12. Bd2 {[%clk 0:02:39.8]} 12... h6
{[%clk 0:02:19.2]} 13. Nd4 {[%clk 0:02:37.8]} 13... Bd5 {[%clk 0:02:18.7]} 14.
e4 {[%clk 0:02:37.8]} 14... c5 {[%clk 0:02:13.4]} 15. Ndb3 {[%clk 0:02:27.2]}
15... Bxb3 {[%clk 0:02:09.8]} 16. Qxb3 {[%clk 0:02:28.1]} 16... Nfd7 {[%clk
0:02:04.9]} 17. Rac1 {[%clk 0:02:25.6]} 17... Bd4 {[%clk 0:01:58]} 18. Bxh6
{[%clk 0:02:24.8]} 18... Rd8 {[%clk 0:01:57]} 19. Bg5 {[%clk 0:02:24.3]} 19...
Kf8 {[%clk 0:01:50.9]} 20. Kh1 {[%clk 0:02:23.1]} 20... Ne5 {[%clk 0:01:44.2]}
21. h3 {[%clk 0:02:18.1]} 21... Nf3 {[%clk 0:01:37.6]} 22. Bh6+ {[%clk
0:02:13.5]} 22... Kg8 {[%clk 0:01:37]} 23. Nxb7 {[%clk 0:02:10.2]} 23... Qxb7
{[%clk 0:01:20]} 24. Bxf3 {[%clk 0:02:09.5]} 24... Qd7 {[%clk 0:01:19.2]} 25.
Kg2 {[%clk 0:02:02.8]} 25... Nxa4 {[%clk 0:01:10.2]} 26. Qc2 {[%clk 0:01:58.6]}
26... Nxb2 {[%clk 0:01:04.7]} 27. Rb1 {[%clk 0:01:53.8]} 27... Rab8 {[%clk
0:01:03.5]} 28. Bf4 {[%clk 0:01:51.5]} 28... e5 {[%clk 0:01:03.2]} 29. Bg5
{[%clk 0:01:49]} 29... Rdc8 {[%clk 0:01:02.1]} 30. Bc1 {[%clk 0:01:41.4]} 30...
c4 {[%clk 0:00:48.9]} 31. Bxb2 {[%clk 0:01:35.6]} 31... Rxb2 {[%clk 0:00:47.6]}
32. Rxb2 {[%clk 0:01:34.4]} 32... Bxb2 {[%clk 0:00:47.4]} 33. Qxb2 {[%clk
0:01:34.3]} 33... c3 {[%clk 0:00:46]} 34. Qb3 {[%clk 0:01:33.2]} 34... Qxd3
{[%clk 0:00:42.9]} 35. Rd1 {[%clk 0:01:32.6]} 35... Qc4 {[%clk 0:00:27.2]} 36.
Qxc4 {[%clk 0:01:29]} 36... Rxc4 {[%clk 0:00:28.1]} 37. Rc1 {[%clk 0:01:29.2]}
37... a5 {[%clk 0:00:27.7]} 38. Kf1 {[%clk 0:01:28.2]} 38... a4 {[%clk
0:00:27.4]} 39. Ke2 {[%clk 0:01:28.8]} 39... a3 {[%clk 0:00:23.5]} 40. Kd3
{[%clk 0:01:29.3]} 40... Rc5 {[%clk 0:00:23.2]} 41. Rxc3 {[%clk 0:01:25.8]}
41... Ra5 {[%clk 0:00:15.5]} 42. Rc1 {[%clk 0:01:24.9]} 42... a2 {[%clk
0:00:15.9]} 43. Ra1 {[%clk 0:01:25.5]} 43... Ra3+ {[%clk 0:00:16.1]} 44. Ke2
{[%clk 0:01:25.6]} 44... Kg7 {[%clk 0:00:16.6]} 45. Bg4 {[%clk 0:01:25]} 45...
f5 {[%clk 0:00:15.1]} 46. exf5 {[%clk 0:01:24.7]} 46... e4 {[%clk 0:00:15.5]}
47. fxg6 {[%clk 0:01:24.7]} 47... Kxg6 {[%clk 0:00:16.4]} 48. Be6 {[%clk
0:01:24.5]} 48... Kf6 {[%clk 0:00:15.1]} 49. Bxa2 {[%clk 0:01:22.6]} 49... Ke5
{[%clk 0:00:14.8]} 50. h4 {[%clk 0:01:22.9]} 50... Ra7 {[%clk 0:00:13]} 51. h5
{[%clk 0:01:22.1]} 51... Ra6 {[%clk 0:00:13.5]} 52. h6 {[%clk 0:01:22.1]} 52...
Rxh6 {[%clk 0:00:13]} 53. Bc4 {[%clk 0:01:22.3]} 53... Rc6 {[%clk 0:00:13.1]}
54. Ra5+ {[%clk 0:01:21.8]} 54... Kd4 {[%clk 0:00:13.6]} 55. Bf7 {[%clk
0:01:20.8]} 55... Rc2+ {[%clk 0:00:13.2]} 56. Kf1 {[%clk 0:01:19.6]} 56... Rb2
{[%clk 0:00:13.7]} 57. Rd5+ {[%clk 0:01:19.3]} 57... Kc3 {[%clk 0:00:14]} 58.
Bg6 {[%clk 0:01:19.1]} 58... e3 {[%clk 0:00:12.8]} 59. fxe3 {[%clk 0:01:19.2]}
1-0

[Event "*** Titled Tuesday Blitz"]
[Site "Chess.com"]
[Date "2021.03.02"]
[Round "9"]
[White "WiktoriaPOL"]
[Black "HanSchut"]
[Result "0-1"]
[WhiteElo "2033"]
[BlackElo "2229"]
[TimeControl "180+1"]
[EndTime "11:47:17 PST"]
[Termination "HanSchut won on time"]

1. e4 {[%clk 0:03:00.9]} 1... c5 {[%clk 0:02:56.9]} 2. d4 {[%clk 0:03:00.1]}
2... cxd4 {[%clk 0:02:56.9]} 3. c3 {[%clk 0:03:00.1]} 3... g6 {[%clk 0:02:57.1]}
4. cxd4 {[%clk 0:02:59.5]} 4... d5 {[%clk 0:02:57.6]} 5. e5 {[%clk 0:02:58.4]}
5... Nh6 {[%clk 0:02:55.9]} 6. Nc3 {[%clk 0:02:58.1]} 6... Bg7 {[%clk
0:02:55.2]} 7. Qb3 {[%clk 0:02:56.5]} 7... Nc6 {[%clk 0:02:49.8]} 8. Nf3 {[%clk
0:02:55.3]} 8... Bg4 {[%clk 0:02:48.3]} 9. Be3 {[%clk 0:02:52.7]} 9... Nf5
{[%clk 0:02:45]} 10. Qxd5 {[%clk 0:02:42.6]} 10... Bxf3 {[%clk 0:02:39.8]} 11.
gxf3 {[%clk 0:02:36.8]} 11... Qxd5 {[%clk 0:02:34.1]} 12. Nxd5 {[%clk
0:02:35.7]} 12... O-O-O {[%clk 0:02:34.7]} 13. Nc3 {[%clk 0:02:12.2]} 13...
Ncxd4 {[%clk 0:02:28.8]} 14. Bxd4 {[%clk 0:02:09.6]} 14... Nxd4 {[%clk
0:02:26.9]} 15. Rc1 {[%clk 0:01:50.1]} 15... Nxf3+ {[%clk 0:02:24.3]} 16. Ke2
{[%clk 0:01:48.7]} 16... Nd4+ {[%clk 0:02:24.8]} 17. Ke3 {[%clk 0:01:46.5]}
17... Kb8 {[%clk 0:02:21.2]} 18. Bg2 {[%clk 0:01:40.7]} 18... Bxe5 {[%clk
0:02:15.7]} 19. f4 {[%clk 0:01:38.3]} 19... Bg7 {[%clk 0:01:58.3]} 20. Rhd1
{[%clk 0:01:36.1]} 20... e5 {[%clk 0:01:50.4]} 21. Nd5 {[%clk 0:01:28.1]} 21...
Nf5+ {[%clk 0:01:41]} 22. Kf2 {[%clk 0:01:20.5]} 22... exf4 {[%clk 0:01:41.3]}
23. Nxf4 {[%clk 0:01:12.8]} 23... Bh6 {[%clk 0:01:36.2]} 24. Rxd8+ {[%clk
0:00:37.6]} 24... Rxd8 {[%clk 0:01:37.1]} 25. Rc4 {[%clk 0:00:34.5]} 25... Rd2+
{[%clk 0:01:29.5]} 26. Ne2 {[%clk 0:00:25.6]} 26... Rxb2 {[%clk 0:01:22.5]} 27.
Bd5 {[%clk 0:00:06.6]} 27... a6 {[%clk 0:01:09.5]} 28. Bxf7 {[%clk 0:00:05.8]}
28... Rxa2 {[%clk 0:00:54.2]} 29. Bg8 {[%clk 0:00:04.4]} 29... Be3+ {[%clk
0:00:46.9]} 30. Kf3 {[%clk 0:00:03.1]} 30... Ra3 {[%clk 0:00:37.4]} 31. Ke4
{[%clk 0:00:02]} 31... Nd6+ {[%clk 0:00:33.2]} 32. Kd5 {[%clk 0:00:01.8]} 32...
Nxc4 {[%clk 0:00:33.6]} 33. Kxc4 {[%clk 0:00:01.9]} 33... h5 {[%clk 0:00:29.1]}
34. Bf7 {[%clk 0:00:01.5]} 34... Ra2 {[%clk 0:00:20.7]} 35. Kd3 {[%clk
0:00:01.1]} 35... Ra3+ {[%clk 0:00:18.2]} 36. Ke4 {[%clk 0:00:01.3]} 36... Bd2
{[%clk 0:00:16.2]} 37. Bxg6 {[%clk 0:00:01.1]} 37... Re3+ {[%clk 0:00:16.3]} 0-1

[Event "*** Titled Tuesday Blitz"]
[Site "Chess.com"]
[Date "2021.03.02"]
[Round "9"]
[White "platy3"]
[Black "Korchmar_Vasiliy"]
[Result "0-1"]
[WhiteElo "2807"]
[BlackElo "2664"]
[TimeControl "180+1"]
[EndTime "11:47:18 PST"]
[Termination "Korchmar_Vasiliy won by resignation"]

1. e4 {[%clk 0:03:00.9]} 1... c5 {[%clk 0:03:00.1]} 2. Nf3 {[%clk 0:03:00.9]}
2... d6 {[%clk 0:03:00.6]} 3. d4 {[%clk 0:03:01.3]} 3... cxd4 {[%clk 0:03:01.5]}
4. Nxd4 {[%clk 0:03:02.2]} 4... Nf6 {[%clk 0:03:02]} 5. Nc3 {[%clk 0:03:02.9]}
5... Nc6 {[%clk 0:03:02.4]} 6. Bg5 {[%clk 0:03:03.6]} 6... e6 {[%clk 0:03:02.5]}
7. Qd2 {[%clk 0:03:04.4]} 7... a6 {[%clk 0:03:02.9]} 8. O-O-O {[%clk 0:03:05.1]}
8... h6 {[%clk 0:03:03.2]} 9. Nxc6 {[%clk 0:02:57.1]} 9... bxc6 {[%clk
0:03:04.1]} 10. Bf4 {[%clk 0:02:57.7]} 10... d5 {[%clk 0:03:04.5]} 11. Qe3
{[%clk 0:02:58.1]} 11... Bb4 {[%clk 0:03:04.2]} 12. Be2 {[%clk 0:02:56.7]} 12...
O-O {[%clk 0:03:04.3]} 13. e5 {[%clk 0:02:50.6]} 13... Nd7 {[%clk 0:03:04.3]}
14. h4 {[%clk 0:02:51.2]} 14... f6 {[%clk 0:03:03.9]} 15. a3 {[%clk 0:02:39.7]}
15... Ba5 {[%clk 0:02:45.6]} 16. exf6 {[%clk 0:02:25.7]} 16... Qxf6 {[%clk
0:02:46.5]} 17. Bd6 {[%clk 0:02:25.8]} 17... Bxc3 {[%clk 0:02:23.5]} 18. bxc3
{[%clk 0:02:05]} 18... Qxf2 {[%clk 0:02:09.8]} 19. Qxe6+ {[%clk 0:02:02]} 19...
Qf7 {[%clk 0:02:08]} 20. Bg4 {[%clk 0:01:54.9]} 20... Nf6 {[%clk 0:01:57.1]} 21.
Qxf7+ {[%clk 0:01:43.8]} 21... Rxf7 {[%clk 0:01:58]} 22. Bf3 {[%clk 0:01:41.4]}
22... Bg4 {[%clk 0:01:52.8]} 23. Rhe1 {[%clk 0:01:37]} 23... Bxf3 {[%clk
0:01:45.2]} 24. gxf3 {[%clk 0:01:37.9]} 24... Nh5 {[%clk 0:01:31]} 25. Re5
{[%clk 0:01:34.9]} 25... Nf4 {[%clk 0:01:24.2]} 26. Rde1 {[%clk 0:01:29.4]}
26... Ng2 {[%clk 0:01:20.6]} 27. Re8+ {[%clk 0:01:17.9]} 27... Rxe8 {[%clk
0:01:20.7]} 28. Rxe8+ {[%clk 0:01:18.8]} 28... Kh7 {[%clk 0:01:21.5]} 29. Ra8
{[%clk 0:01:19.2]} 29... Nxh4 {[%clk 0:01:21.2]} 30. Rxa6 {[%clk 0:01:17.8]}
30... Nxf3 {[%clk 0:01:18.7]} 31. a4 {[%clk 0:01:04.7]} 31... h5 {[%clk
0:01:17.6]} 32. a5 {[%clk 0:01:05.3]} 32... h4 {[%clk 0:01:14.8]} 33. Ra8 {[%clk
0:01:05.5]} 33... h3 {[%clk 0:00:54.6]} 34. a6 {[%clk 0:01:05.7]} 34... h2
{[%clk 0:00:46.6]} 35. Bxh2 {[%clk 0:01:05.7]} 35... Nxh2 {[%clk 0:00:47.5]} 36.
a7 {[%clk 0:01:06.2]} 36... Kg6 {[%clk 0:00:43.5]} 37. Rh8 {[%clk 0:01:06.7]}
37... Rxa7 {[%clk 0:00:42.3]} 38. Rxh2 {[%clk 0:01:07.2]} 38... Ra4 {[%clk
0:00:39.9]} 39. Kd2 {[%clk 0:01:06.9]} 39... Kf5 {[%clk 0:00:35.3]} 40. Rh8
{[%clk 0:01:04.4]} 40... g5 {[%clk 0:00:34.3]} 41. Rh6 {[%clk 0:01:04.7]} 41...
Rc4 {[%clk 0:00:33.2]} 42. Rh8 {[%clk 0:01:05.2]} 42... Kf4 {[%clk 0:00:28.6]}
43. Rf8+ {[%clk 0:01:05.7]} 43... Kg3 {[%clk 0:00:28.5]} 44. Kd3 {[%clk
0:01:06.4]} 44... g4 {[%clk 0:00:28]} 45. Kd2 {[%clk 0:01:06.4]} 45... Kg2
{[%clk 0:00:27]} 46. Rg8 {[%clk 0:01:06.5]} 46... g3 {[%clk 0:00:27.5]} 47. Kd3
{[%clk 0:01:06.7]} 47... Kf2 {[%clk 0:00:25.7]} 48. Rf8+ {[%clk 0:01:07]} 48...
Kg1 {[%clk 0:00:25]} 49. Rg8 {[%clk 0:01:07.3]} 49... g2 {[%clk 0:00:24.9]} 50.
Kd2 {[%clk 0:01:08]} 50... Rf4 {[%clk 0:00:21.8]} 51. Ke3 {[%clk 0:01:07.3]}
51... Rf6 {[%clk 0:00:15.6]} 52. Ra8 {[%clk 0:01:05.1]} 52... Re6+ {[%clk
0:00:09.9]} 53. Kd4 {[%clk 0:01:05.5]} 53... Re4+ {[%clk 0:00:07.2]} 54. Kd3
{[%clk 0:01:04.9]} 54... Kf2 {[%clk 0:00:07]} 55. Rf8+ {[%clk 0:01:03.9]} 55...
Kg3 {[%clk 0:00:07.2]} 56. Rg8+ {[%clk 0:00:58.7]} 56... Rg4 {[%clk 0:00:07.3]}
0-1

[Event "*** Titled Tuesday Blitz"]
[Site "Chess.com"]
[Date "2021.03.02"]
[Round "9"]
[White "elextranjero00"]
[Black "Gabrielian_Artur"]
[Result "0-1"]
[WhiteElo "2647"]
[BlackElo "2797"]
[TimeControl "180+1"]
[EndTime "11:47:20 PST"]
[Termination "Gabrielian_Artur won by resignation"]

1. Nf3 {[%clk 0:03:00.9]} 1... Nf6 {[%clk 0:02:59.3]} 2. c4 {[%clk 0:03:01]}
2... g6 {[%clk 0:02:58.8]} 3. Nc3 {[%clk 0:03:00.6]} 3... Bg7 {[%clk 0:02:58.6]}
4. e4 {[%clk 0:03:00.8]} 4... e5 {[%clk 0:02:58.9]} 5. Nxe5 {[%clk 0:02:56.2]}
5... O-O {[%clk 0:02:59]} 6. Be2 {[%clk 0:02:50.9]} 6... Re8 {[%clk 0:02:55.9]}
7. Nf3 {[%clk 0:02:47]} 7... Nxe4 {[%clk 0:02:55.7]} 8. O-O {[%clk 0:02:47.1]}
8... d6 {[%clk 0:02:51.6]} 9. Nxe4 {[%clk 0:02:25.2]} 9... Rxe4 {[%clk
0:02:50.9]} 10. d3 {[%clk 0:02:25.8]} 10... Re8 {[%clk 0:02:49.8]} 11. Bg5
{[%clk 0:02:21.3]} 11... Bf6 {[%clk 0:02:43.7]} 12. Qd2 {[%clk 0:01:48.7]} 12...
Nc6 {[%clk 0:02:37.6]} 13. Bxf6 {[%clk 0:01:45]} 13... Qxf6 {[%clk 0:02:37.4]}
14. h3 {[%clk 0:01:42]} 14... Bd7 {[%clk 0:02:25.1]} 15. d4 {[%clk 0:01:39.3]}
15... Re7 {[%clk 0:02:23.7]} 16. Rae1 {[%clk 0:01:34.5]} 16... Rae8 {[%clk
0:02:23.1]} 17. Bd1 {[%clk 0:01:34.7]} 17... Rxe1 {[%clk 0:02:13.1]} 18. Rxe1
{[%clk 0:01:34.5]} 18... Rxe1+ {[%clk 0:02:12.4]} 19. Qxe1 {[%clk 0:01:34.7]}
19... Nxd4 {[%clk 0:02:12.1]} 20. b3 {[%clk 0:01:30.3]} 20... Kg7 {[%clk
0:02:05]} 21. Qe3 {[%clk 0:01:21.6]} 21... Nxf3+ {[%clk 0:01:57.7]} 22. Bxf3
{[%clk 0:01:21.2]} 22... b6 {[%clk 0:01:57.8]} 23. Qd2 {[%clk 0:01:11.9]} 23...
Qa1+ {[%clk 0:01:53.9]} 24. Kh2 {[%clk 0:01:11.5]} 24... Qe5+ {[%clk 0:01:53.9]}
25. g3 {[%clk 0:01:11.1]} 25... a5 {[%clk 0:01:50.4]} 26. h4 {[%clk 0:01:06.7]}
26... h6 {[%clk 0:01:47.7]} 27. Kg2 {[%clk 0:01:06.9]} 27... a4 {[%clk
0:01:42.5]} 28. bxa4 {[%clk 0:00:59.4]} 28... Bxa4 {[%clk 0:01:41.3]} 29. Bd5
{[%clk 0:00:59]} 29... Bd7 {[%clk 0:01:37.4]} 30. Qd1 {[%clk 0:00:41.2]} 30...
c6 {[%clk 0:01:12]} 31. Bf3 {[%clk 0:00:40.3]} 31... Be6 {[%clk 0:01:12.2]} 32.
Bxc6 {[%clk 0:00:34.3]} 32... Bxc4 {[%clk 0:01:10.9]} 33. a3 {[%clk 0:00:31.9]}
33... d5 {[%clk 0:01:09.9]} 34. Qb1 {[%clk 0:00:27.3]} 34... Qd4 {[%clk
0:00:47.4]} 35. Qe1 {[%clk 0:00:24.4]} 35... Qf6 {[%clk 0:00:43.3]} 36. Bd7
{[%clk 0:00:22]} 36... d4 {[%clk 0:00:40.9]} 37. Qe4 {[%clk 0:00:18.3]} 37...
Qd6 {[%clk 0:00:40.5]} 38. Bc6 {[%clk 0:00:18.2]} 38... Be6 {[%clk 0:00:34.1]}
39. Kh2 {[%clk 0:00:11.3]} 39... d3 {[%clk 0:00:31.5]} 40. Ba4 {[%clk
0:00:11.4]} 40... d2 {[%clk 0:00:31.5]} 41. Bd1 {[%clk 0:00:11.5]} 41... h5
{[%clk 0:00:30.5]} 42. Kg1 {[%clk 0:00:10.7]} 42... Bg4 {[%clk 0:00:24.6]} 0-1

[Event "*** Titled Tuesday Blitz"]
[Site "Chess.com"]
[Date "2021.03.02"]
[Round "9"]
[White "SergeyShtyka"]
[Black "ruvat"]
[Result "0-1"]
[WhiteElo "2453"]
[BlackElo "2353"]
[TimeControl "180+1"]
[EndTime "11:47:21 PST"]
[Termination "ruvat won on time"]

1. e4 {[%clk 0:03:00.9]} 1... d6 {[%clk 0:03:00.9]} 2. Nf3 {[%clk 0:03:01.2]}
2... Nf6 {[%clk 0:03:00.7]} 3. Nc3 {[%clk 0:03:01.1]} 3... g6 {[%clk 0:03:00.9]}
4. Bc4 {[%clk 0:03:00.2]} 4... Bg7 {[%clk 0:03:01.2]} 5. O-O {[%clk 0:03:00.2]}
5... O-O {[%clk 0:03:01]} 6. a3 {[%clk 0:02:59.6]} 6... c6 {[%clk 0:03:00]} 7.
d3 {[%clk 0:02:56.9]} 7... b5 {[%clk 0:02:59.1]} 8. Ba2 {[%clk 0:02:56.5]} 8...
a5 {[%clk 0:02:59.6]} 9. Be3 {[%clk 0:02:48.7]} 9... Ba6 {[%clk 0:02:54.4]} 10.
h3 {[%clk 0:02:42.9]} 10... b4 {[%clk 0:02:53.4]} 11. axb4 {[%clk 0:02:42.3]}
11... axb4 {[%clk 0:02:54.3]} 12. Ne2 {[%clk 0:02:39.7]} 12... c5 {[%clk
0:02:46.5]} 13. Bb3 {[%clk 0:02:35]} 13... Nc6 {[%clk 0:02:42.4]} 14. Qd2 {[%clk
0:02:33.3]} 14... Nd7 {[%clk 0:02:22.9]} 15. c3 {[%clk 0:02:29.2]} 15... bxc3
{[%clk 0:02:14.6]} 16. bxc3 {[%clk 0:02:29.1]} 16... c4 {[%clk 0:02:12.4]} 17.
Bxc4 {[%clk 0:02:23.8]} 17... Bxc4 {[%clk 0:02:11.5]} 18. Rxa8 {[%clk
0:02:22.5]} 18... Qxa8 {[%clk 0:02:10.7]} 19. dxc4 {[%clk 0:02:22.6]} 19... Qa6
{[%clk 0:02:07.4]} 20. c5 {[%clk 0:02:02.8]} 20... Nxc5 {[%clk 0:02:05.4]} 21.
Bxc5 {[%clk 0:02:00.9]} 21... dxc5 {[%clk 0:02:05.4]} 22. Rd1 {[%clk 0:01:36.8]}
22... Rd8 {[%clk 0:01:59.2]} 23. Qe1 {[%clk 0:01:34]} 23... Rxd1 {[%clk
0:01:40.5]} 24. Qxd1 {[%clk 0:01:33.8]} 24... Qc4 {[%clk 0:01:40.9]} 25. Qd5
{[%clk 0:00:53.8]} 25... Qxd5 {[%clk 0:01:25.1]} 26. exd5 {[%clk 0:00:53.9]}
26... Na5 {[%clk 0:01:25.1]} 27. Nd2 {[%clk 0:00:40.1]} 27... Be5 {[%clk
0:01:04.2]} 28. Ne4 {[%clk 0:00:38.4]} 28... Bd6 {[%clk 0:01:04.2]} 29. f4
{[%clk 0:00:31]} 29... Nc4 {[%clk 0:01:03.2]} 30. Kf2 {[%clk 0:00:29.3]} 30...
Nb6 {[%clk 0:01:02.7]} 31. c4 {[%clk 0:00:17.2]} 31... Nxc4 {[%clk 0:01:02]} 32.
Nxd6 {[%clk 0:00:16.5]} 32... exd6 {[%clk 0:00:58]} 33. Nc3 {[%clk 0:00:15.9]}
33... Kf8 {[%clk 0:00:53.1]} 34. g4 {[%clk 0:00:15.4]} 34... f5 {[%clk
0:00:47.1]} 35. gxf5 {[%clk 0:00:10.5]} 35... gxf5 {[%clk 0:00:48]} 36. Kg3
{[%clk 0:00:08.8]} 36... Kf7 {[%clk 0:00:43.8]} 37. Kh4 {[%clk 0:00:09.1]} 37...
Kg6 {[%clk 0:00:41.7]} 38. Nb5 {[%clk 0:00:08.8]} 38... Ne3 {[%clk 0:00:36]} 39.
Nxd6 {[%clk 0:00:03.6]} 39... Nxd5 {[%clk 0:00:34.9]} 40. Kg3 {[%clk 0:00:04]}
40... Nb6 {[%clk 0:00:32.2]} 41. Nb5 {[%clk 0:00:02.8]} 41... c4 {[%clk
0:00:30]} 42. Nc3 {[%clk 0:00:02.9]} 42... Kh5 {[%clk 0:00:26.9]} 0-1